lending/lending_fUSD_20250406
["ID","MTS","AMOUNT","RATE_DAILY","PERIOD"]
[357233547,1743924648610,-505.63225032,0.00069999,120]
[357233548,1743924648621,-505.63225032,0.00069999,120]
[357233549,1743924648632,-505.63225032,0.00069999,120]
[357233550,1743924648642,-505.63225032,0.00069999,120]
[357233551,1743924648652,-505.63225032,0.00069999,120]
[357233552,1743924648664,-505.63225032,0.00069999,120]
[357233553,1743924648674,-505.63225032,0.00069999,120]
[357233554,1743924648684,-505.63225032,0.00069999,120]
[357233555,1743924648694,-505.63225032,0.00069999,120]
[357233556,1743924648704,-505.63225032,0.00069999,120]
[357233557,1743924648715,-505.63225032,0.00069999,120]
[357233558,1743924648724,-505.63225032,0.00069999,120]
[357233559,1743924648735,-505.63225032,0.00069999,120]
[357233560,1743924648745,-505.63225032,0.00069999,120]
[357233561,1743924648754,-505.63225032,0.00069999,120]
[357233562,1743924648764,-505.63225032,0.00069999,120]
[357233563,1743924648773,-505.63225032,0.00069999,120]
[357233564,1743924648783,-505.63225032,0.00069999,120]
[357233565,1743924648793,-505.63225032,0.00069999,120]
[357233566,1743924648803,-505.63225032,0.00069999,120]
[357233567,1743924648813,-505.63225032,0.00069999,120]
[357233568,1743924648822,-505.63225032,0.00069999,120]
[357233569,1743924648832,-505.63225032,0.00069999,120]
[357233570,1743924648842,-505.63225032,0.00069999,120]
[357233571,1743924648852,-505.63225032,0.00069999,120]
[357233572,1743924648862,-505.63225032,0.00069999,120]
[357233573,1743924648874,-505.63225032,0.00069999,120]
[357233574,1743924648884,-505.63225032,0.00069999,120]
[357233575,1743924648894,-500.0,0.00069999,120]
[357233576,1743924648904,-500.0,0.00069999,120]
[357233577,1743924648913,-500.0,0.00069999,120]
[357233578,1743924648923,-500.0,0.00069999,120]
[357233579,1743924648932,-500.0,0.00069999,120]
[357233580,1743924648942,-500.0,0.00069999,120]
[357233581,1743924648951,-500.0,0.00069999,120]
[357233582,1743924648961,-500.0,0.00069999,120]
[357233583,1743924648970,-500.0,0.00069999,120]
[357233584,1743924648979,-500.0,0.00069999,120]
[357233585,1743924648989,-500.0,0.00069999,120]
[357233586,1743924649000,-500.0,0.00069999,120]
[357233587,1743924649009,-500.0,0.00069999,120]
[357233588,1743924649019,-500.0,0.00069999,120]
[357233589,1743924649029,-500.0,0.00069999,120]
[357233590,1743924649039,-500.0,0.00069999,120]
[357233591,1743924649049,-500.0,0.00069999,120]
[357233592,1743924649059,-500.0,0.00069999,120]
[357233593,1743924649069,-500.0,0.00069999,120]
[357233594,1743924649079,-500.0,0.00069999,120]
[357233595,1743924649089,-387.99013267,0.00069999,120]
[357233596,1743924649099,-500.0,0.00069999,120]
[357233597,1743924649109,-500.0,0.00069999,120]
[357233598,1743924649119,-500.0,0.00069999,120]
[357233599,1743924649128,-500.0,0.00069999,120]
[357233600,1743924649138,-530.91386282,0.00069999,120]
[357233601,1743924649148,-400.62820235,0.00069999,120]
[357233602,1743924649157,-199.78463851,0.00069999,120]
[357233603,1743924649167,-1000000.0,0.0007,120]
[357233604,1743924649176,-281.82866178,0.0007,120]
[357233605,1743924649186,-400.86107254,0.0007,120]
[357233606,1743924649196,-353.22414178,0.0007,2]
[357233607,1743924649206,-2000.0,0.0007,120]
[357233608,1743924649216,-328.02,0.00071806,2]
[357233609,1743924649225,-239.56731452,0.00072,30]
[357233610,1743924649235,-500000.0,0.000725,120]
[357233611,1743924649245,-1000.0,0.0007319,120]
[357233612,1743924649255,-341.54,0.00073223,120]
[357233613,1743924649265,-328.02,0.0007407,2]
[357233614,1743924649275,-500.0,0.00075,15]
[357233615,1743924649285,-1000000.0,0.00075,120]
[357233616,1743924649295,-353.22414178,0.00075,2]
[357233617,1743924649305,-328.02,0.00076334,2]
[357233618,1743924649426,-1003.60367485,0.00076524,5]
[357233619,1743924649437,-526.71669078,0.000768,120]
[357233620,1743924649448,-151.0,0.00076904,120]
[357233621,1743924649459,-500000.0,0.000775,120]
[357233622,1743924649472,-1039.79340481,0.00078,120]
[357233623,1743924649482,-328.02,0.00078598,2]
[357233624,1743924649492,-592.91039951,0.000788,120]
[357233625,1743924649503,-341.54,0.00079019,120]
[357233626,1743924649512,-1000000.0,0.0008,120]
[357233627,1743924649523,-200.0,0.0008,8]
[357233628,1743924649534,-486.59908835,0.0008,120]
[357233629,1743924649546,-1215.916599,0.0008,120]
[357233630,1743924649556,-353.22414178,0.0008,2]
[357233631,1743924649566,-330.85572616,0.000801,30]
[357233632,1743924649576,-838.09662604,0.00080479,15]
[357233633,1743924649586,-328.02,0.00080862,2]
[357233634,1743924649596,-1612.60610247,0.0008137,30]
[357233635,1743924649606,-159.2,0.00081918,120]
[357233636,1743924649615,-150.05,0.00082044,120]
[357233637,1743924649626,-501.82547928,0.00082191,120]
[357233638,1743924649636,-502.45524684,0.00082191,120]
[357233639,1743924649650,-500.0,0.00082191,120]
[357233640,1743924649660,-500.0,0.00082191,120]
[357233641,1743924649669,-500.0,0.00082191,120]
[357233642,1743924649679,-500.0,0.00082191,120]
[357233643,1743924649688,-500.0,0.00082191,120]
[357233644,1743924649698,-500.0,0.00082191,120]
[357233645,1743924649708,-500.0,0.00082191,120]
[357233646,1743924649718,-500.0,0.00082191,120]
[357233647,1743924649727,-592.00269134,0.00082191,120]
[357233648,1743924649737,-500.0,0.00082191,120]
[357233649,1743924649747,-535.59627709,0.00082191,120]
[357233650,1743924649756,-500.0,0.00082191,120]
[357233651,1743924649766,-500.0,0.00082191,120]
[357233652,1743924649776,-500.0,0.00082191,120]
[357233653,1743924649786,-414.99159608,0.00082191,120]
[357233654,1743924649795,-375.59911619,0.00082191,120]
[357233655,1743924649805,-500.0,0.00082191,120]
[357233656,1743924649814,-517.45767395,0.00082191,120]
[357233657,1743924649824,-509.72575996,0.00082191,120]
[357233658,1743924649833,-500.0,0.00082191,120]
[357233659,1743924649843,-500.0,0.00082191,120]
[357233660,1743924649853,-500.0,0.00082191,120]
[357233661,1743924649862,-500.0,0.00082191,120]
[357233662,1743924649871,-248.99,0.00082191,120]
[357233663,1743924649881,-511.90815991,0.00082191,120]
[357233664,1743924649891,-500.0,0.00082191,120]
[357233665,1743924649901,-479.85746359,0.00082191,120]
[357233666,1743924649910,-500.0,0.00082191,120]
[357233667,1743924649920,-500.0,0.00082191,120]
[357233668,1743924649930,-500.0,0.00082191,120]
[357233669,1743924649939,-500.0,0.00082191,120]
[357233670,1743924649949,-500.0,0.00082191,120]
[357233671,1743924649958,-582.54174233,0.00082191,120]
[357233672,1743924649968,-318.42464194,0.00082191,120]
[357233673,1743924649977,-500.0,0.00082191,120]
[357233674,1743924649986,-531.21903365,0.00082191,120]
[357233675,1743924649996,-533.28911082,0.00082191,120]
[357233676,1743924650006,-500.0,0.00082191,120]
[357233677,1743924650015,-500.0,0.00082191,120]
[357233678,1743924650025,-500.0,0.00082191,120]
[357233679,1743924650035,-500.0,0.00082191,120]
[357233680,1743924650045,-529.96991287,0.00082191,120]
[357233681,1743924650054,-500.0,0.00082191,120]
[357233682,1743924650063,-500.0,0.00082191,120]
[357233683,1743924650072,-204.69284999,0.00082191,120]
[357233684,1743924650081,-500.0,0.00082191,120]
[357233685,1743924650091,-500.0,0.00082191,120]
[357233686,1743924650100,-500.0,0.00082191,120]
[357233687,1743924650109,-352.11,0.00082191,120]
[357233688,1743924650119,-500.0,0.00082191,120]
[357233689,1743924650128,-500.0,0.00082191,120]
[357233690,1743924650137,-500.0,0.00082191,120]
[357233691,1743924650147,-500.0,0.00082191,120]
[357233692,1743924650155,-294.34,0.00082191,120]
[357233693,1743924650165,-500.0,0.00082191,120]
[357233694,1743924650174,-500.0,0.00082191,120]
[357233695,1743924650183,-500.0,0.00082191,120]
[357233696,1743924650192,-500.0,0.00082191,120]
[357233697,1743924650202,-1000.0,0.00082191,120]
[357233698,1743924650211,-500.0,0.00082191,120]
[357233699,1743924650221,-520.25,0.00082191,120]
[357233700,1743924650230,-552.8248491,0.00082191,120]
[357233701,1743924650240,-535.48617135,0.00082191,120]
[357233702,1743924650250,-500.0,0.00082191,120]
[357233703,1743924650259,-500.0,0.00082191,120]
[357233704,1743924650268,-500.0,0.00082191,120]
[357233705,1743924650278,-500.0,0.00082191,120]
[357233706,1743924650287,-500.0,0.00082191,120]
[357233707,1743924650296,-500.0,0.00082191,120]
[357233708,1743924650305,-500.0,0.00082191,120]
[357233709,1743924650315,-500.0,0.00082191,120]
[357233710,1743924650324,-500.0,0.00082191,120]
[357233711,1743924650333,-518.06759149,0.00082191,120]
[357233712,1743924650342,-471.48816256,0.00082191,120]
[357233713,1743924650352,-500.0,0.00082191,120]
[357233714,1743924650361,-500.0,0.00082191,120]
[357233715,1743924650370,-483.05105509,0.00082191,120]
[357233716,1743924650379,-500.0,0.00082191,120]
[357233717,1743924650388,-500.0,0.00082191,120]
[357233718,1743924650398,-500.0,0.00082191,120]
[357233719,1743924650407,-500.0,0.00082191,30]
[357233720,1743924650416,-500.0,0.00082191,30]
[357233721,1743924650425,-500.0,0.00082191,30]
[357233722,1743924650434,-500.0,0.00082191,30]
[357233723,1743924650443,-500.0,0.00082191,120]
[357233724,1743924650456,-500.0,0.00082191,30]
[357233725,1743924650464,-419.00028909,0.00082191,120]
[357233726,1743924650473,-173.17734455,0.00082191,30]
[357233727,1743924650482,-500.0,0.00082191,120]
[357233728,1743924650491,-500.0,0.00082191,120]
[357233729,1743924650501,-496.41,0.00082191,120]
[357233730,1743924650510,-559.84550786,0.00082191,120]
[357233731,1743924650519,-548.14514557,0.00082191,120]
[357233732,1743924650528,-500.0,0.00082191,120]
[357233733,1743924650538,-500.0,0.00082191,120]
[357233734,1743924650549,-500.0,0.00082191,120]
[357233735,1743924650558,-500.0,0.00082191,120]
[357233736,1743924650567,-500.0,0.00082191,120]
[357233737,1743924650576,-500.0,0.00082191,30]
[357233738,1743924650586,-500.0,0.00082191,120]
[357233739,1743924650595,-554.48573874,0.00082191,120]
[357233740,1743924650606,-500.0,0.00082191,120]
[357233741,1743924650615,-500.0,0.00082191,120]
[357233742,1743924650626,-500.0,0.00082191,120]
[357233743,1743924650636,-500.0,0.00082191,120]
[357233744,1743924650645,-570.17734111,0.00082191,120]
[357233745,1743924650655,-588.04036912,0.00082191,120]
[357233746,1743924650664,-199.3406026,0.00082191,120]
[357233747,1743924650674,-500.0,0.00082191,120]
[357233748,1743924650683,-500.0,0.00082191,120]
[357233749,1743924650692,-500.0,0.00082191,120]
[357233750,1743924650702,-583.26291544,0.00082191,120]
[357233751,1743924650711,-500.0,0.00082191,120]
[357233752,1743924650720,-500.0,0.00082191,120]
[357233753,1743924650729,-397.99824864,0.00082191,120]
[357233754,1743924650738,-557.98435622,0.00082191,120]
[357233755,1743924650748,-500.0,0.00082191,120]
[357233756,1743924650756,-500.0,0.00082191,120]
[357233757,1743924650766,-330.94120617,0.00082191,120]
[357233758,1743924650775,-500.0,0.00082191,120]
[357233759,1743924650786,-500.0,0.00082191,120]
[357233760,1743924650795,-500.0,0.00082191,120]
[357233761,1743924650804,-500.0,0.00082191,120]
[357233762,1743924650813,-500.0,0.00082191,120]
[357233763,1743924650822,-519.10443691,0.00082191,120]
[357233764,1743924650831,-500.0,0.00082191,120]
[357233765,1743924650840,-500.0,0.00082191,120]
[357233766,1743924650849,-364.44,0.00082191,120]
[357233767,1743924650859,-512.10731621,0.00082191,120]
[357233768,1743924650868,-500.0,0.00082191,120]
[357233769,1743924650878,-565.5396167,0.00082191,120]
[357233770,1743924650887,-500.0,0.00082191,120]
[357233771,1743924650897,-500.0,0.00082191,120]
[357233772,1743924650906,-500.0,0.00082191,120]
[357233773,1743924650915,-500.0,0.00082191,120]
[357233774,1743924650925,-214.43365566,0.00082191,120]
[357233775,1743924650934,-500.0,0.00082191,120]
[357233776,1743924650943,-500.0,0.00082191,120]
[357233777,1743924650954,-500.0,0.00082191,120]
[357233778,1743924650963,-500.0,0.00082191,120]
[357233779,1743924650972,-500.0,0.00082191,120]
[357233780,1743924650982,-345.14104295,0.00082191,120]
[357233781,1743924650990,-571.11116239,0.00082191,120]
[357233782,1743924650999,-500.0,0.00082191,120]
[357233783,1743924651008,-500.0,0.00082191,120]
[357233784,1743924651017,-487.09199811,0.00082191,120]
[357233785,1743924651026,-500.0,0.00082191,120]
[357233786,1743924651035,-555.55629911,0.00082191,120]
[357233787,1743924651045,-500.0,0.00082191,120]
[357233788,1743924651054,-500.0,0.00082191,120]
[357233789,1743924651063,-500.0,0.00082191,120]
[357233790,1743924651072,-500.0,0.00082191,120]
[357233791,1743924651082,-442.16344933,0.00082191,120]
[357233792,1743924651091,-500.0,0.00082191,120]
[357233793,1743924651101,-500.0,0.00082191,120]
[357233794,1743924651110,-500.0,0.00082191,120]
[357233795,1743924651120,-500.0,0.00082191,120]
[357233796,1743924651129,-500.0,0.00082191,120]
[357233797,1743924651138,-500.0,0.00082191,120]
[357233798,1743924651148,-375.90614691,0.00082191,120]
[357233799,1743924651157,-500.0,0.00082191,120]
[357233800,1743924651166,-544.67525703,0.00082191,120]
[357233801,1743924651176,-500.0,0.00082191,120]
[357233802,1743924651185,-500.0,0.00082191,120]
[357233803,1743924651194,-500.0,0.00082191,120]
[357233804,1743924651203,-500.0,0.00082191,120]
[357233805,1743924651213,-500.0,0.00082191,120]
[357233806,1743924651222,-500.0,0.00082191,120]
[357233807,1743924651230,-500.0,0.00082191,120]
[357233808,1743924651240,-500.0,0.00082191,120]
[357233809,1743924651250,-574.00982072,0.00082191,120]
[357233810,1743924651259,-500.0,0.00082191,120]
[357233811,1743924651268,-500.0,0.00082191,120]
[357233812,1743924651278,-500.0,0.00082191,120]
[357233813,1743924651288,-180.91616825,0.00082191,120]
[357233814,1743924651298,-510.99561213,0.00082191,120]
[357233815,1743924651308,-500.0,0.00082191,120]
[357233816,1743924651318,-500.0,0.00082191,120]
[357233817,1743924651327,-500.0,0.00082191,120]
[357233818,1743924651337,-270.9197073,0.00082191,120]
[357233819,1743924651347,-500.0,0.00082191,120]
[357233820,1743924651356,-500.0,0.00082191,120]
[357233821,1743924651365,-500.0,0.00082191,120]
[357233822,1743924651375,-500.0,0.00082191,120]
[357233823,1743924651384,-500.0,0.00082191,120]
[357233824,1743924651393,-500.0,0.00082191,120]
[357233825,1743924651402,-500.0,0.00082191,120]
[357233826,1743924651411,-505.71192655,0.00082191,120]
[357233827,1743924651421,-598.12354691,0.00082191,120]
[357233828,1743924651430,-500.0,0.00082191,120]
[357233829,1743924651439,-500.0,0.00082191,120]
[357233830,1743924651451,-500.0,0.00082191,120]
[357233831,1743924651461,-500.0,0.00082191,120]
[357233832,1743924651471,-500.0,0.00082191,120]
[357233833,1743924651481,-500.0,0.00082191,120]
[357233834,1743924651491,-500.0,0.00082191,120]
[357233835,1743924651502,-500.0,0.00082191,120]
[357233836,1743924651512,-569.50260742,0.00082191,120]
[357233837,1743924651523,-500.0,0.00082191,120]
[357233838,1743924651624,-500.0,0.00082191,120]
[357233839,1743924651634,-500.0,0.00082191,120]
[357233840,1743924651644,-500.0,0.00082191,120]
[357233841,1743924651653,-443.04,0.00082191,120]
[357233842,1743924651663,-514.39324868,0.00082191,120]
[357233843,1743924651672,-500.0,0.00082191,120]
[357233844,1743924651681,-500.0,0.00082191,120]
[357233845,1743924651691,-500.0,0.00082191,120]
[357233846,1743924651700,-505.92882731,0.00082191,120]
[357233847,1743924651709,-500.0,0.00082191,120]
[357233848,1743924651719,-500.0,0.00082191,120]
[357233849,1743924651729,-512.29,0.00082191,120]
[357233850,1743924651739,-500.0,0.00082191,120]
[357233851,1743924651748,-500.0,0.00082191,120]
[357233852,1743924651757,-524.47660666,0.00082191,120]
[357233853,1743924651766,-489.3699353,0.00082191,120]
[357233854,1743924651776,-500.0,0.00082191,120]
[357233855,1743924651786,-551.0956909,0.00082191,120]
[357233856,1743924651795,-500.0,0.00082191,120]
[357233857,1743924651804,-500.0,0.00082191,120]
[357233858,1743924651814,-500.0,0.00082191,120]
[357233859,1743924651823,-623.65337588,0.00082191,120]
[357233860,1743924651834,-500.0,0.00082191,120]
[357233861,1743924651842,-500.0,0.00082191,120]
[357233862,1743924651852,-500.48,0.00082191,120]
[357233863,1743924651862,-539.1921218,0.00082191,120]
[357233864,1743924651871,-500.0,0.00082191,120]
[357233865,1743924651880,-500.0,0.00082191,120]
[357233866,1743924651889,-648.99251806,0.00082191,120]
[357233867,1743924651898,-302.39044014,0.00082191,120]
[357233868,1743924651907,-500.0,0.00082191,120]
[357233869,1743924651916,-500.0,0.00082191,120]
[357233870,1743924651925,-560.23559119,0.00082191,120]
[357233871,1743924651934,-327.63163012,0.00082191,120]
[357233872,1743924651943,-500.0,0.00082191,120]
[357233873,1743924651953,-500.0,0.00082191,120]
[357233874,1743924651962,-500.0,0.00082191,120]
[357233875,1743924651972,-500.0,0.00082191,120]
[357233876,1743924651982,-500.0,0.00082191,120]
[357233877,1743924651991,-536.22324015,0.00082191,120]
[357233878,1743924652000,-500.0,0.00082191,120]
[357233879,1743924652009,-542.83614577,0.00082191,120]
[357233880,1743924652018,-500.0,0.00082191,120]
[357233881,1743924652027,-248.00783904,0.00082191,120]
[357233882,1743924652036,-500.0,0.00082191,120]
[357233883,1743924652045,-606.18659248,0.00082191,120]
[357233884,1743924652054,-500.0,0.00082191,120]
[357233885,1743924652063,-500.0,0.00082191,120]
[357233886,1743924652072,-197.87296032,0.00082191,120]
[357233887,1743924652081,-500.0,0.00082191,120]
[357233888,1743924652091,-528.49377385,0.00082191,120]
[357233889,1743924652103,-500.0,0.00082191,120]
[357233890,1743924652112,-500.0,0.00082191,120]
[357233891,1743924652121,-500.0,0.00082191,120]
[357233892,1743924652130,-508.9556669,0.00082191,120]
[357233893,1743924652139,-499.56787092,0.00082191,120]
[357233894,1743924652148,-506.0194163,0.00082191,120]
[357233895,1743924652157,-523.60770265,0.00082191,120]
[357233896,1743924652166,-505.72829396,0.00082191,120]
[357233897,1743924652175,-514.10508478,0.00082191,120]
[357233898,1743924652184,-500.0,0.00082191,120]
[357233899,1743924652193,-564.12305062,0.00082191,120]
[357233900,1743924652202,-544.72861129,0.00082191,120]
[357233901,1743924652211,-500.0,0.00082191,120]
[357233902,1743924652220,-500.0,0.00082191,120]
[357233903,1743924652229,-500.0,0.00082191,120]
[357233904,1743924652238,-500.0,0.00082191,120]
[357233905,1743924652247,-512.52517093,0.00082191,120]
[357233906,1743924652256,-500.0,0.00082191,120]
[357233907,1743924652265,-500.0,0.00082191,120]
[357233908,1743924652274,-500.0,0.00082191,120]
[357233909,1743924652283,-500.0,0.00082191,120]
[357233910,1743924652293,-500.0,0.00082191,120]
[357233911,1743924652302,-500.0,0.00082191,120]
[357233912,1743924652312,-500.0,0.00082191,120]
[357233913,1743924652322,-208.21778993,0.00082191,120]
[357233914,1743924652331,-500.0,0.00082191,120]
[357233915,1743924652340,-500.0,0.00082191,120]
[357233916,1743924652349,-500.0,0.00082191,120]
[357233917,1743924652359,-500.0,0.00082191,120]
[357233918,1743924652368,-512.63841012,0.00082191,120]
[357233919,1743924652378,-500.0,0.00082191,120]
[357233920,1743924652387,-500.0,0.00082191,120]
[357233921,1743924652396,-500.0,0.00082191,120]
[357233922,1743924652406,-500.0,0.00082191,120]
[357233923,1743924652415,-500.0,0.00082191,120]
[357233924,1743924652424,-502.8745305,0.00082191,120]
[357233925,1743924652433,-500.0,0.00082191,120]
[357233926,1743924652443,-567.56823562,0.00082191,120]
[357233927,1743924652453,-500.0,0.00082191,120]
[357233928,1743924652465,-500.0,0.00082191,120]
[357233929,1743924652474,-500.0,0.00082191,120]
[357233930,1743924652485,-500.0,0.00082191,120]
[357233931,1743924652494,-500.0,0.00082191,120]
[357233932,1743924652503,-500.0,0.00082191,120]
[357233933,1743924652513,-515.35958022,0.00082191,120]
[357233934,1743924652522,-500.0,0.00082191,120]
[357233935,1743924652532,-500.0,0.00082191,120]
[357233936,1743924652541,-500.0,0.00082191,120]
[357233937,1743924652552,-500.0,0.00082191,120]
[357233938,1743924652562,-537.56353819,0.00082191,120]
[357233939,1743924652571,-500.0,0.00082191,120]
[357233940,1743924652581,-1000.0,0.00082191,120]
[357233941,1743924652591,-500.0,0.00082191,120]
[357233942,1743924652601,-500.0,0.00082191,120]
[357233943,1743924652611,-151.10085227,0.00082191,120]
[357233944,1743924652620,-518.91411471,0.00082191,120]
[357233945,1743924652630,-500.0,0.00082191,120]
[357233946,1743924652640,-500.0,0.00082191,120]
[357233947,1743924652649,-500.0,0.00082191,120]
[357233948,1743924652659,-577.65,0.00082191,120]
[357233949,1743924652668,-500.0,0.00082191,120]
[357233950,1743924652677,-508.96030338,0.00082191,120]
[357233951,1743924652687,-500.0,0.00082191,120]
[357233952,1743924652696,-500.0,0.00082191,120]
[357233953,1743924652705,-500.0,0.00082191,120]
[357233954,1743924652715,-500.0,0.00082191,120]
[357233955,1743924652724,-500.0,0.00082191,120]
[357233956,1743924652733,-508.5688188,0.00082191,120]
[357233957,1743924652743,-500.0,0.00082191,120]
[357233958,1743924652752,-504.5868929,0.00082191,120]
[357233959,1743924652761,-500.0,0.00082191,120]
[357233960,1743924652770,-500.0,0.00082191,120]
[357233961,1743924652779,-500.0,0.00082191,120]
[357233962,1743924652788,-500.0,0.00082191,120]
[357233963,1743924652797,-601.93336363,0.00082191,120]
[357233964,1743924652806,-500.0,0.00082191,120]
[357233965,1743924652816,-190.70892171,0.00082191,120]
[357233966,1743924652825,-500.0,0.00082191,120]
[357233967,1743924652834,-500.0,0.00082191,120]
[357233968,1743924652843,-526.12218698,0.00082191,120]
[357233969,1743924652853,-610.89429083,0.00082191,120]
[357233970,1743924652862,-500.0,0.00082191,120]
[357233971,1743924652871,-500.0,0.00082191,120]
[357233972,1743924652880,-500.0,0.00082191,120]
[357233973,1743924652889,-500.0,0.00082191,120]
[357233974,1743924652898,-500.0,0.00082191,120]
[357233975,1743924652908,-500.0,0.00082191,120]
[357233976,1743924652917,-500.0,0.00082191,120]
[357233977,1743924652927,-500.0,0.00082191,120]
[357233978,1743924652936,-500.0,0.00082191,120]
[357233979,1743924652945,-227.40582832,0.00082191,120]
[357233980,1743924652955,-500.0,0.00082191,120]
[357233981,1743924652965,-500.0,0.00082191,120]
[357233982,1743924652974,-644.93371464,0.00082191,120]
[357233983,1743924652984,-500.0,0.00082191,120]
[357233984,1743924652995,-500.0,0.00082191,120]
[357233985,1743924653004,-416.29,0.00082191,120]
[357233986,1743924653014,-500.0,0.00082191,120]
[357233987,1743924653023,-500.0,0.00082191,120]
[357233988,1743924653032,-349.04534944,0.00082191,120]
[357233989,1743924653041,-500.0,0.00082191,120]
[357233990,1743924653051,-500.0,0.00082191,120]
[357233991,1743924653060,-594.39475488,0.00082191,120]
[357233992,1743924653069,-529.22446345,0.00082191,120]
[357233993,1743924653080,-512.74524722,0.00082191,120]
[357233994,1743924653089,-500.0,0.00082191,120]
[357233995,1743924653098,-500.0,0.00082191,120]
[357233996,1743924653108,-590.74245145,0.00082191,120]
[357233997,1743924653117,-500.0,0.00082191,120]
[357233998,1743924653127,-511.6382856,0.00082191,120]
[357233999,1743924653136,-500.0,0.00082191,120]
[357234000,1743924653146,-500.0,0.00082191,120]
[357234001,1743924653154,-500.0,0.00082191,120]
[357234002,1743924653163,-502.82629369,0.00082191,120]
[357234003,1743924653173,-500.0,0.00082191,120]
[357234004,1743924653182,-505.50851461,0.00082191,120]
[357234005,1743924653191,-500.0,0.00082191,120]
[357234006,1743924653201,-500.0,0.00082191,120]
[357234007,1743924653210,-500.0,0.00082191,120]
[357234008,1743924653219,-211.12525827,0.00082191,120]
[357234009,1743924653228,-545.3339472,0.00082191,120]
[357234010,1743924653237,-539.14557483,0.00082191,120]
[357234011,1743924653246,-500.0,0.00082191,120]
[357234012,1743924653256,-500.0,0.00082191,120]
[357234013,1743924653264,-500.0,0.00082191,120]
[357234014,1743924653274,-500.0,0.00082191,120]
[357234015,1743924653283,-500.0,0.00082191,120]
[357234016,1743924653291,-292.98728393,0.00082191,120]
[357234017,1743924653300,-500.0,0.00082191,120]
[357234018,1743924653309,-500.0,0.00082191,120]
[357234019,1743924653318,-333.14843105,0.00082191,120]
[357234020,1743924653328,-500.0,0.00082191,120]
[357234021,1743924653338,-500.0,0.00082191,120]
[357234022,1743924653348,-264.44246761,0.00082191,120]
[357234023,1743924653357,-568.91563559,0.00082191,120]
[357234024,1743924653366,-500.0,0.00082191,120]
[357234025,1743924653376,-340.09939486,0.00082191,120]
[357234026,1743924653385,-505.89468979,0.00082191,120]
[357234027,1743924653395,-500.0,0.00082191,120]
[357234028,1743924653405,-500.0,0.00082191,120]
[357234029,1743924653415,-500.0,0.00082191,120]
[357234030,1743924653424,-299.07718384,0.00082191,120]
[357234031,1743924653433,-500.0,0.00082191,120]
[357234032,1743924653444,-500.0,0.00082191,120]
[357234033,1743924653457,-500.0,0.00082191,120]
[357234034,1743924653467,-422.31059937,0.00082191,120]
[357234035,1743924653476,-500.0,0.00082191,120]
[357234036,1743924653487,-350.0,0.00082191,120]
[357234037,1743924653497,-350.0,0.00082191,120]
[357234038,1743924653506,-350.0,0.00082191,120]
[357234039,1743924653515,-350.0,0.00082191,120]
[357234040,1743924653524,-350.0,0.00082191,120]
[357234041,1743924653618,-500.0,0.00082191,120]
[357234042,1743924653629,-350.0,0.00082191,120]
[357234043,1743924653637,-500.0,0.00082191,120]
[357234044,1743924653647,-500.0,0.00082191,120]
[357234045,1743924653656,-500.0,0.00082191,120]
[357234046,1743924653665,-500.0,0.00082191,120]